[Event "*** Titled Tuesday Blitz"]
[Site "Chess.com"]
[Date "2020.11.03"]
[Round "3"]
[White "MartinZumsande"]
[Black "Loy_Konstantin"]
[Result "1-0"]
[WhiteElo "2601"]
[BlackElo "2372"]
[TimeControl "180+1"]
[EndTime "10:32:01 PST"]
[Termination "MartinZumsande won on time"]

1. e4 {[%clk 0:03:00.9]} 1... c5 {[%clk 0:02:59.6]} 2. c3 {[%clk 0:02:59.7]}
2... Nf6 {[%clk 0:02:58.2]} 3. e5 {[%clk 0:02:59.2]} 3... Nd5 {[%clk 0:02:58.5]}
4. d4 {[%clk 0:03:00.1]} 4... cxd4 {[%clk 0:02:59.4]} 5. cxd4 {[%clk 0:03:00.6]}
5... d6 {[%clk 0:02:59.8]} 6. Bc4 {[%clk 0:02:58.6]} 6... e6 {[%clk 0:02:59.5]}
7. Nf3 {[%clk 0:02:54.8]} 7... Be7 {[%clk 0:02:59.3]} 8. O-O {[%clk 0:02:54.2]}
8... Nc6 {[%clk 0:02:59.7]} 9. Re1 {[%clk 0:02:53.6]} 9... O-O {[%clk
0:02:59.4]} 10. exd6 {[%clk 0:02:54.2]} 10... Qxd6 {[%clk 0:02:58.3]} 11. Nc3
{[%clk 0:02:54.6]} 11... Nxc3 {[%clk 0:02:57.5]} 12. bxc3 {[%clk 0:02:55.5]}
12... b6 {[%clk 0:02:56.4]} 13. Ng5 {[%clk 0:02:55.9]} 13... Bxg5 {[%clk
0:02:50.4]} 14. Bxg5 {[%clk 0:02:56.8]} 14... Bb7 {[%clk 0:02:46.5]} 15. Qg4
{[%clk 0:02:56.4]} 15... Kh8 {[%clk 0:02:35.2]} 16. Bd3 {[%clk 0:02:47.9]} 16...
f5 {[%clk 0:01:57.9]} 17. Qh4 {[%clk 0:02:43.4]} 17... Rae8 {[%clk 0:01:50.7]}
18. Re3 {[%clk 0:02:35.4]} 18... Rf7 {[%clk 0:01:38.8]} 19. Rae1 {[%clk
0:02:22.2]} 19... Qd5 {[%clk 0:01:11.8]} 20. Rh3 {[%clk 0:02:12]} 20... g6
{[%clk 0:01:10.7]} 21. Bf6+ {[%clk 0:02:02.7]} 21... Kg8 {[%clk 0:01:10.2]} 22.
Qg5 {[%clk 0:02:02.2]} 22... Ne7 {[%clk 0:00:50.4]} 23. Rg3 {[%clk 0:01:45.7]}
23... Qd7 {[%clk 0:00:41.6]} 24. Be5 {[%clk 0:01:36.3]} 24... Nc6 {[%clk
0:00:34.9]} 25. h4 {[%clk 0:01:35.9]} 25... Nxe5 {[%clk 0:00:34.1]} 26. Rxe5
{[%clk 0:01:36.8]} 26... Qe7 {[%clk 0:00:32]} 27. Bc4 {[%clk 0:01:28.6]} 27...
Qxg5 {[%clk 0:00:29.3]} 28. hxg5 {[%clk 0:01:28.4]} 28... Rfe7 {[%clk
0:00:29.6]} 29. Rge3 {[%clk 0:01:27.7]} 29... Kf7 {[%clk 0:00:28.4]} 30. f4
{[%clk 0:01:25.8]} 30... Bc6 {[%clk 0:00:23.6]} 31. Bb3 {[%clk 0:01:24.9]} 31...
Be4 {[%clk 0:00:23.5]} 32. Kf2 {[%clk 0:01:20.3]} 32... Rc8 {[%clk 0:00:23.8]}
33. g4 {[%clk 0:01:20]} 33... Rd8 {[%clk 0:00:20.8]} 34. Rh3 {[%clk 0:01:13.7]}
34... Rh8 {[%clk 0:00:20.1]} 35. Rh2 {[%clk 0:01:06.9]} 35... Bd5 {[%clk
0:00:10.5]} 36. c4 {[%clk 0:01:06.3]} 36... Be4 {[%clk 0:00:10.3]} 37. Kg3
{[%clk 0:01:04.6]} 37... Rd7 {[%clk 0:00:10.3]} 38. Rd2 {[%clk 0:00:58.5]} 38...
Rhd8 {[%clk 0:00:09.7]} 39. d5 {[%clk 0:00:57.9]} 39... exd5 {[%clk 0:00:10.6]}
40. cxd5 {[%clk 0:00:58.4]} 40... Rd6 {[%clk 0:00:10.8]} 41. gxf5 {[%clk
0:00:57.2]} 41... Bxf5 {[%clk 0:00:10.5]} 42. Rh2 {[%clk 0:00:53.7]} 42... Kg8
{[%clk 0:00:08.7]} 43. Re7 {[%clk 0:00:51.2]} 43... R8d7 {[%clk 0:00:08.8]} 44.
Rxd7 {[%clk 0:00:51.3]} 44... Rxd7 {[%clk 0:00:08.7]} 45. d6+ {[%clk 0:00:48.9]}
45... Kg7 {[%clk 0:00:09]} 46. Rd2 {[%clk 0:00:49.5]} 46... Kf8 {[%clk
0:00:08.2]} 47. Kf3 {[%clk 0:00:48.5]} 47... Rd8 {[%clk 0:00:07.1]} 48. Ba4
{[%clk 0:00:47.5]} 48... Bd7 {[%clk 0:00:07.2]} 49. Bxd7 {[%clk 0:00:45.6]}
49... Rxd7 {[%clk 0:00:07.2]} 50. Ke4 {[%clk 0:00:46.5]} 50... Ke8 {[%clk
0:00:06.2]} 51. Kd5 {[%clk 0:00:46.4]} 51... Kd8 {[%clk 0:00:06.2]} 52. Kc6
{[%clk 0:00:45.5]} 52... Rf7 {[%clk 0:00:06.7]} 53. Rh2 {[%clk 0:00:43.9]} 53...
Rxf4 {[%clk 0:00:06.1]} 54. Rxh7 {[%clk 0:00:43]} 54... Rc4+ {[%clk 0:00:07]}
55. Kd5 {[%clk 0:00:43.1]} 55... Rc2 {[%clk 0:00:07.1]} 56. Rxa7 {[%clk
0:00:41.1]} 56... Rg2 {[%clk 0:00:05.6]} 57. Ke6 {[%clk 0:00:40.6]} 57... Re2+
{[%clk 0:00:05.5]} 58. Kf6 {[%clk 0:00:40.9]} 58... Rd2 {[%clk 0:00:06]} 59.
Kxg6 {[%clk 0:00:37.7]} 59... Rxd6+ {[%clk 0:00:05.7]} 60. Kh7 {[%clk 0:00:37]}
60... Rd2 {[%clk 0:00:03.8]} 61. g6 {[%clk 0:00:36.9]} 61... Rh2+ {[%clk
0:00:03.9]} 62. Kg8 {[%clk 0:00:36.9]} 62... Ke8 {[%clk 0:00:04.8]} 63. g7
{[%clk 0:00:33.9]} 63... Rh3 {[%clk 0:00:03.7]} 64. Ra4 {[%clk 0:00:33.6]} 64...
Ke7 {[%clk 0:00:02.7]} 65. Re4+ {[%clk 0:00:33.9]} 65... Kd7 {[%clk 0:00:01.2]}
66. Kf7 {[%clk 0:00:33.1]} 66... Rf3+ {[%clk 0:00:01.6]} 67. Kg6 {[%clk
0:00:33.1]} 67... Rg3+ {[%clk 0:00:02]} 68. Kf6 {[%clk 0:00:33.4]} 68... b5
{[%clk 0:00:02.1]} 69. Re5 {[%clk 0:00:27.3]} 69... Rf3+ {[%clk 0:00:01.4]} 70.
Rf5 {[%clk 0:00:26.5]} 1-0

[Event "*** Titled Tuesday Blitz"]
[Site "Chess.com"]
[Date "2020.11.03"]
[Round "3"]
[White "lamomiablanca"]
[Black "pastouche06"]
[Result "1/2-1/2"]
[WhiteElo "2268"]
[BlackElo "2504"]
[TimeControl "180+1"]
[EndTime "10:32:06 PST"]
[Termination "Game drawn - insufficient material"]

1. e4 {[%clk 0:03:00.9]} 1... c6 {[%clk 0:02:59.1]} 2. d4 {[%clk 0:02:59.1]}
2... d5 {[%clk 0:02:59.2]} 3. Nc3 {[%clk 0:02:59.7]} 3... dxe4 {[%clk
0:02:59.6]} 4. Nxe4 {[%clk 0:02:59.8]} 4... Nf6 {[%clk 0:03:00.1]} 5. Nxf6+
{[%clk 0:02:55.6]} 5... exf6 {[%clk 0:03:01]} 6. Be2 {[%clk 0:02:50]} 6... Bd6
{[%clk 0:02:59.6]} 7. Nf3 {[%clk 0:02:49.5]} 7... O-O {[%clk 0:02:59.6]} 8. Be3
{[%clk 0:02:48.6]} 8... Re8 {[%clk 0:02:58.1]} 9. Qd2 {[%clk 0:02:48.7]} 9... a5
{[%clk 0:02:52.3]} 10. O-O {[%clk 0:02:48.4]} 10... Bg4 {[%clk 0:02:48.8]} 11.
Rfe1 {[%clk 0:02:46.8]} 11... Nd7 {[%clk 0:02:49]} 12. Nh4 {[%clk 0:02:37.3]}
12... Bxe2 {[%clk 0:02:47.8]} 13. Rxe2 {[%clk 0:02:36.4]} 13... Qc7 {[%clk
0:02:47.2]} 14. g3 {[%clk 0:02:29.5]} 14... g6 {[%clk 0:02:46.7]} 15. Rae1
{[%clk 0:02:27]} 15... b5 {[%clk 0:02:32.3]} 16. Ng2 {[%clk 0:02:25.1]} 16...
Nb6 {[%clk 0:02:28]} 17. Bf4 {[%clk 0:02:20.2]} 17... Rxe2 {[%clk 0:02:24]} 18.
Rxe2 {[%clk 0:02:19.8]} 18... Nc4 {[%clk 0:02:19]} 19. Qc1 {[%clk 0:02:19.4]}
19... b4 {[%clk 0:01:57.6]} 20. h4 {[%clk 0:02:14.9]} 20... h5 {[%clk
0:01:48.5]} 21. c3 {[%clk 0:02:12.6]} 21... Nb6 {[%clk 0:01:37.4]} 22. Qe1
{[%clk 0:02:10.1]} 22... Kg7 {[%clk 0:01:25.3]} 23. Re8 {[%clk 0:02:03.3]} 23...
Rxe8 {[%clk 0:01:14.3]} 24. Qxe8 {[%clk 0:02:02]} 24... Nd5 {[%clk 0:01:14.8]}
25. Bh6+ {[%clk 0:01:44.4]} 25... Kh7 {[%clk 0:01:14.7]} 26. c4 {[%clk
0:01:43.4]} 26... Qe7 {[%clk 0:00:57.9]} 27. Qxc6 {[%clk 0:00:57.4]} 27... Nc3
{[%clk 0:00:51.9]} 28. bxc3 {[%clk 0:00:47]} 28... bxc3 {[%clk 0:00:52.8]} 29.
Be3 {[%clk 0:00:46.9]} 29... c2 {[%clk 0:00:51.9]} 30. Qf3 {[%clk 0:00:33.2]}
30... Ba3 {[%clk 0:00:45.3]} 31. c5 {[%clk 0:00:25.3]} 31... Qe6 {[%clk
0:00:37.1]} 32. d5 {[%clk 0:00:16.9]} 32... Qe5 {[%clk 0:00:27.9]} 33. d6 {[%clk
0:00:16.5]} 33... Bxc5 {[%clk 0:00:26.8]} 34. Bf4 {[%clk 0:00:10.7]} 34... Qxd6
{[%clk 0:00:23.1]} 35. Bxd6 {[%clk 0:00:06.2]} 35... c1=Q+ {[%clk 0:00:23.3]}
36. Kh2 {[%clk 0:00:06.4]} 36... Bxd6 {[%clk 0:00:23.5]} 37. Qd5 {[%clk
0:00:07]} 37... Qc7 {[%clk 0:00:21]} 38. Ne3 {[%clk 0:00:06.6]} 38... Kg7 {[%clk
0:00:17.5]} 39. Qe4 {[%clk 0:00:06.4]} 39... Bc5 {[%clk 0:00:16.4]} 40. Kg2
{[%clk 0:00:03.8]} 40... Qe5 {[%clk 0:00:16.2]} 41. Qxe5 {[%clk 0:00:01.8]}
41... fxe5 {[%clk 0:00:17.1]} 42. Nc4 {[%clk 0:00:02]} 42... a4 {[%clk
0:00:13.4]} 43. Nxe5 {[%clk 0:00:02.1]} 43... Bd6 {[%clk 0:00:12.8]} 44. Nc4
{[%clk 0:00:03]} 44... Bc7 {[%clk 0:00:12.4]} 45. Kf3 {[%clk 0:00:03.9]} 45...
f5 {[%clk 0:00:12.2]} 46. Ke2 {[%clk 0:00:04]} 46... Kf6 {[%clk 0:00:12.5]} 47.
Nb2 {[%clk 0:00:03.3]} 47... a3 {[%clk 0:00:09.1]} 48. Nc4 {[%clk 0:00:03.9]}
48... f4 {[%clk 0:00:09.7]} 49. Nxa3 {[%clk 0:00:04.3]} 49... fxg3 {[%clk
0:00:09.9]} 50. fxg3 {[%clk 0:00:04.3]} 50... Bxg3 {[%clk 0:00:10.8]} 51. Nb5
{[%clk 0:00:04.4]} 51... Bxh4 {[%clk 0:00:11.1]} 52. Kf3 {[%clk 0:00:05.2]}
52... Be1 {[%clk 0:00:10.6]} 53. a4 {[%clk 0:00:05.4]} 53... g5 {[%clk
0:00:11.2]} 54. Nd4 {[%clk 0:00:05.4]} 54... Ke5 {[%clk 0:00:10]} 55. Nc2 {[%clk
0:00:04.7]} 55... g4+ {[%clk 0:00:10.4]} 56. Kg2 {[%clk 0:00:04.5]} 56... Bc3
{[%clk 0:00:08]} 57. Ne3 {[%clk 0:00:03.6]} 57... Kf4 {[%clk 0:00:07.8]} 58.
Nd5+ {[%clk 0:00:03.5]} 58... Ke5 {[%clk 0:00:06.1]} 59. Nxc3 {[%clk 0:00:04.4]}
59... Kd4 {[%clk 0:00:05.9]} 60. a5 {[%clk 0:00:04.4]} 60... Kc5 {[%clk
0:00:06.3]} 61. Kg3 {[%clk 0:00:04.6]} 61... Kc6 {[%clk 0:00:06.5]} 62. Kh4
{[%clk 0:00:05]} 62... Kb7 {[%clk 0:00:06.4]} 63. Kxh5 {[%clk 0:00:03.1]} 63...
g3 {[%clk 0:00:06.5]} 64. Ne2 {[%clk 0:00:03.8]} 64... g2 {[%clk 0:00:07]} 65.
Kg4 {[%clk 0:00:04.3]} 65... Ka6 {[%clk 0:00:07.9]} 66. Kg3 {[%clk 0:00:04.4]}
66... Kxa5 {[%clk 0:00:08.4]} 67. Kxg2 {[%clk 0:00:05.1]} 1/2-1/2

[Event "*** Titled Tuesday Blitz"]
[Site "Chess.com"]
[Date "2020.11.03"]
[Round "3"]
[White "oogee"]
[Black "Balla_Tamas"]
[Result "0-1"]
[WhiteElo "2218"]
[BlackElo "2490"]
[TimeControl "180+1"]
[EndTime "10:32:06 PST"]
[Termination "Balla_Tamas won by resignation"]

1. d4 {[%clk 0:03:00.9]} 1... f5 {[%clk 0:02:58.8]} 2. g3 {[%clk 0:02:59.7]}
2... Nf6 {[%clk 0:02:58.4]} 3. Bg2 {[%clk 0:02:59.5]} 3... e6 {[%clk 0:02:59.1]}
4. Nh3 {[%clk 0:02:58.5]} 4... d5 {[%clk 0:02:58.4]} 5. O-O {[%clk 0:02:58.4]}
5... c6 {[%clk 0:02:57.3]} 6. Nd2 {[%clk 0:02:58.5]} 6... Bd6 {[%clk 0:02:50.2]}
7. Nf3 {[%clk 0:02:58.1]} 7... O-O {[%clk 0:02:50.1]} 8. Bf4 {[%clk 0:02:58.1]}
8... Be7 {[%clk 0:02:50.2]} 9. Be5 {[%clk 0:02:55.8]} 9... Nbd7 {[%clk
0:02:48.4]} 10. Nf4 {[%clk 0:02:54.6]} 10... Nxe5 {[%clk 0:02:46.4]} 11. Nxe5
{[%clk 0:02:54.6]} 11... Bd6 {[%clk 0:02:45.4]} 12. Nfd3 {[%clk 0:02:53]} 12...
Nd7 {[%clk 0:02:39.6]} 13. c4 {[%clk 0:02:50]} 13... Nxe5 {[%clk 0:02:39]} 14.
Nxe5 {[%clk 0:02:49.3]} 14... Qc7 {[%clk 0:02:35]} 15. f4 {[%clk 0:02:40.1]}
15... Rd8 {[%clk 0:02:29.2]} 16. Qb3 {[%clk 0:02:34.1]} 16... Bd7 {[%clk
0:02:10.4]} 17. e3 {[%clk 0:02:32.9]} 17... Be8 {[%clk 0:02:09.4]} 18. Rac1
{[%clk 0:02:23.5]} 18... Qb6 {[%clk 0:02:01.8]} 19. c5 {[%clk 0:02:20.1]} 19...
Qxb3 {[%clk 0:02:01.4]} 20. axb3 {[%clk 0:02:21]} 20... Bc7 {[%clk 0:01:58.2]}
21. b4 {[%clk 0:02:20.9]} 21... a5 {[%clk 0:01:54.7]} 22. bxa5 {[%clk
0:02:08.8]} 22... Rxa5 {[%clk 0:01:54.7]} 23. Rc3 {[%clk 0:01:32]} 23... Rda8
{[%clk 0:01:52.9]} 24. Rf2 {[%clk 0:01:29.6]} 24... Ra1+ {[%clk 0:01:48.2]} 25.
Bf1 {[%clk 0:01:29.3]} 25... R8a7 {[%clk 0:01:39.6]} 26. Rb3 {[%clk 0:01:28.5]}
26... Kf8 {[%clk 0:01:36.8]} 27. Kg2 {[%clk 0:01:27.3]} 27... Ke7 {[%clk
0:01:36.6]} 28. h3 {[%clk 0:01:24.3]} 28... Kd8 {[%clk 0:01:31.7]} 29. g4 {[%clk
0:01:24]} 29... Kc8 {[%clk 0:01:21.8]} 30. Bd3 {[%clk 0:01:16]} 30... g6 {[%clk
0:01:20.2]} 31. h4 {[%clk 0:01:13.5]} 31... Re1 {[%clk 0:01:13.8]} 32. gxf5
{[%clk 0:01:03.3]} 32... gxf5 {[%clk 0:00:55.9]} 33. Be2 {[%clk 0:00:56.2]}
33... Raa1 {[%clk 0:00:54.5]} 34. Bf3 {[%clk 0:00:56.5]} 34... Rh1 {[%clk
0:00:51.2]} 35. Kg3 {[%clk 0:00:46.7]} 35... Rhg1+ {[%clk 0:00:43]} 36. Kh2
{[%clk 0:00:46]} 36... Rg7 {[%clk 0:00:40.4]} 37. Rg2 {[%clk 0:00:39.7]} 37...
Rxg2+ {[%clk 0:00:40]} 38. Bxg2 {[%clk 0:00:39.2]} 38... Re1 {[%clk 0:00:37]}
39. Bf3 {[%clk 0:00:38]} 39... Rf1 {[%clk 0:00:36.3]} 40. Kg2 {[%clk 0:00:37.9]}
40... Rb1 {[%clk 0:00:35]} 41. Kf2 {[%clk 0:00:37.7]} 41... Rc1 {[%clk
0:00:32.9]} 42. Kg3 {[%clk 0:00:37.2]} 42... Rg1+ {[%clk 0:00:32.2]} 43. Kf2
{[%clk 0:00:37.2]} 43... Rc1 {[%clk 0:00:32.3]} 44. Kg3 {[%clk 0:00:37.2]} 44...
Rc2 {[%clk 0:00:32.3]} 45. Rb4 {[%clk 0:00:36.5]} 45... Kb8 {[%clk 0:00:27.9]}
46. Rb3 {[%clk 0:00:35.9]} 46... Ba5 {[%clk 0:00:27.4]} 47. Ra3 {[%clk
0:00:34.8]} 47... Be1+ {[%clk 0:00:26.8]} 48. Kh3 {[%clk 0:00:33.9]} 48... Rxb2
{[%clk 0:00:26.6]} 49. Ra1 {[%clk 0:00:33.8]} 49... Bd2 {[%clk 0:00:24.6]} 50.
Rg1 {[%clk 0:00:33.6]} 50... Bg6 {[%clk 0:00:24]} 51. h5 {[%clk 0:00:33.2]}
51... Bxe3 {[%clk 0:00:23.3]} 52. hxg6 {[%clk 0:00:30.6]} 52... hxg6 {[%clk
0:00:23.5]} 53. Rxg6 {[%clk 0:00:30.1]} 53... Bxf4 {[%clk 0:00:24.2]} 54. Bg2
{[%clk 0:00:24.1]} 54... Rb3+ {[%clk 0:00:20.3]} 55. Kh4 {[%clk 0:00:24]} 55...
Rb4 {[%clk 0:00:20.6]} 56. Rxe6 {[%clk 0:00:21.5]} 56... Be3 {[%clk 0:00:18.5]}
57. Re8+ {[%clk 0:00:17.4]} 57... Kc7 {[%clk 0:00:18.1]} 58. Ng6 {[%clk
0:00:14.5]} 58... Rxd4+ {[%clk 0:00:17]} 59. Kh5 {[%clk 0:00:14.9]} 59... Bf2
{[%clk 0:00:14.5]} 60. Re7+ {[%clk 0:00:14.1]} 60... Kb8 {[%clk 0:00:13.7]} 61.
Ne5 {[%clk 0:00:12.2]} 61... Rd2 {[%clk 0:00:10.6]} 62. Kg5 {[%clk 0:00:09.6]}
62... Kc8 {[%clk 0:00:09.3]} 63. Kxf5 {[%clk 0:00:09.4]} 63... Bxc5 {[%clk
0:00:08.8]} 64. Re8+ {[%clk 0:00:08.3]} 64... Kc7 {[%clk 0:00:08.6]} 65. Bh3
{[%clk 0:00:06.9]} 65... Rf2+ {[%clk 0:00:08.5]} 66. Ke6 {[%clk 0:00:07]} 66...
Re2 {[%clk 0:00:07.7]} 67. Bf5 {[%clk 0:00:07]} 67... d4 {[%clk 0:00:07.6]} 68.
Kf6 {[%clk 0:00:06.5]} 68... Bd6 {[%clk 0:00:06.9]} 69. Nc4 {[%clk 0:00:05.4]}
69... Rxe8 {[%clk 0:00:06.1]} 70. Nxd6 {[%clk 0:00:05.4]} 70... Kxd6 {[%clk
0:00:06.2]} 0-1

[Event "*** Titled Tuesday Blitz"]
[Site "Chess.com"]
[Date "2020.11.03"]
[Round "3"]
[White "suyu28"]
[Black "Sanan_Sjugirov"]
[Result "1-0"]
[WhiteElo "2646"]
[BlackElo "2839"]
[TimeControl "180+1"]
[EndTime "10:32:10 PST"]
[Termination "suyu28 won by checkmate"]

1. e4 {[%clk 0:03:00.9]} 1... c5 {[%clk 0:02:58.7]} 2. Nf3 {[%clk 0:03:00.6]}
2... d6 {[%clk 0:02:58.8]} 3. Bb5+ {[%clk 0:02:52.6]} 3... Nc6 {[%clk
0:02:56.9]} 4. O-O {[%clk 0:02:51.4]} 4... Bd7 {[%clk 0:02:56.4]} 5. c4 {[%clk
0:02:50.6]} 5... e5 {[%clk 0:02:41.1]} 6. Nc3 {[%clk 0:02:41.7]} 6... Nge7
{[%clk 0:02:40.7]} 7. d3 {[%clk 0:02:41.1]} 7... a6 {[%clk 0:02:34.7]} 8. Ba4
{[%clk 0:02:40.6]} 8... h6 {[%clk 0:02:19.8]} 9. Be3 {[%clk 0:02:23]} 9... g6
{[%clk 0:02:17.1]} 10. Nd2 {[%clk 0:02:16]} 10... Bg7 {[%clk 0:02:15.8]} 11. f4
{[%clk 0:02:16.2]} 11... exf4 {[%clk 0:01:49]} 12. Bxf4 {[%clk 0:02:14.4]} 12...
Be6 {[%clk 0:01:49.1]} 13. Nf3 {[%clk 0:01:52.4]} 13... O-O {[%clk 0:01:47.5]}
14. Qd2 {[%clk 0:01:52.8]} 14... Kh7 {[%clk 0:01:45.8]} 15. Rae1 {[%clk
0:01:52.4]} 15... Rb8 {[%clk 0:01:24.4]} 16. Kh1 {[%clk 0:01:46.3]} 16... Bg4
{[%clk 0:01:12.1]} 17. Bd1 {[%clk 0:01:37.1]} 17... Bxf3 {[%clk 0:01:09]} 18.
Bxf3 {[%clk 0:01:36.3]} 18... b5 {[%clk 0:01:01.4]} 19. cxb5 {[%clk 0:01:32.7]}
19... axb5 {[%clk 0:01:02.3]} 20. Nd5 {[%clk 0:01:24.7]} 20... Nxd5 {[%clk
0:01:01.4]} 21. exd5 {[%clk 0:01:24.8]} 21... Ne5 {[%clk 0:01:01.4]} 22. Bd1
{[%clk 0:01:20.5]} 22... Ra8 {[%clk 0:00:49.6]} 23. a3 {[%clk 0:01:17.7]} 23...
Qa5 {[%clk 0:00:48.1]} 24. Qe3 {[%clk 0:01:10.9]} 24... Rae8 {[%clk 0:00:38.5]}
25. Qg3 {[%clk 0:00:59.2]} 25... Qa7 {[%clk 0:00:18.5]} 26. h4 {[%clk
0:00:58.9]} 26... c4 {[%clk 0:00:14.3]} 27. dxc4 {[%clk 0:00:52.5]} 27... bxc4
{[%clk 0:00:13.5]} 28. h5 {[%clk 0:00:52.2]} 28... g5 {[%clk 0:00:05.7]} 29.
Bc2+ {[%clk 0:00:48]} 29... Kg8 {[%clk 0:00:05.3]} 30. Be3 {[%clk 0:00:38.3]}
30... Qb7 {[%clk 0:00:04.8]} 31. Rd1 {[%clk 0:00:28.6]} 31... Qxb2 {[%clk
0:00:04.5]} 32. Bb1 {[%clk 0:00:24.9]} 32... Qxa3 {[%clk 0:00:03.5]} 33. Qf2
{[%clk 0:00:20.5]} 33... f5 {[%clk 0:00:02.3]} 34. Bc1 {[%clk 0:00:10.8]} 34...
Qa8 {[%clk 0:00:02]} 35. Bxf5 {[%clk 0:00:10]} 35... Kh8 {[%clk 0:00:02.5]} 36.
Qc2 {[%clk 0:00:09.8]} 36... Qb7 {[%clk 0:00:02.2]} 37. Be6 {[%clk 0:00:09.7]}
37... Rxf1+ {[%clk 0:00:02]} 38. Rxf1 {[%clk 0:00:09.8]} 38... Qe7 {[%clk
0:00:01.7]} 39. Bb2 {[%clk 0:00:09.9]} 39... g4 {[%clk 0:00:01.8]} 40. g3 {[%clk
0:00:07]} 40... Qg5 {[%clk 0:00:01.6]} 41. Qh2 {[%clk 0:00:03.2]} 41... Qe3
{[%clk 0:00:01.6]} 42. Bc1 {[%clk 0:00:02.9]} 42... Qe4+ {[%clk 0:00:01.7]} 43.
Qg2 {[%clk 0:00:03.4]} 43... Nf3 {[%clk 0:00:01.8]} 44. Bf4 {[%clk 0:00:02.4]}
44... Qd4 {[%clk 0:00:01.9]} 45. Bxg4 {[%clk 0:00:02.6]} 45... Ne5 {[%clk
0:00:01.7]} 46. Bh3 {[%clk 0:00:03]} 46... Qd3 {[%clk 0:00:02.1]} 47. Be6 {[%clk
0:00:03.3]} 47... c3 {[%clk 0:00:02.5]} 48. Rc1 {[%clk 0:00:03.2]} 48... c2
{[%clk 0:00:02.9]} 49. Qxc2 {[%clk 0:00:03.5]} 49... Qf3+ {[%clk 0:00:03.2]} 50.
Qg2 {[%clk 0:00:03.8]} 50... Qa3 {[%clk 0:00:03.4]} 51. g4 {[%clk 0:00:03.7]}
51... Nd3 {[%clk 0:00:03.8]} 52. Rf1 {[%clk 0:00:02.8]} 52... Nxf4 {[%clk
0:00:04]} 53. Rxf4 {[%clk 0:00:03.2]} 53... Qc1+ {[%clk 0:00:04.6]} 54. Rf1
{[%clk 0:00:04.1]} 54... Qg5 {[%clk 0:00:05.2]} 55. Qf3 {[%clk 0:00:04.3]} 55...
Qh4+ {[%clk 0:00:05.2]} 56. Kg2 {[%clk 0:00:04]} 56... Be5 {[%clk 0:00:05.4]}
57. Rh1 {[%clk 0:00:04.4]} 57... Qg5 {[%clk 0:00:05.5]} 58. Qf5 {[%clk
0:00:04.8]} 58... Qd2+ {[%clk 0:00:05.6]} 59. Qf2 {[%clk 0:00:05]} 59... Qd3
{[%clk 0:00:05.6]} 60. Qf3 {[%clk 0:00:05.4]} 60... Qc2+ {[%clk 0:00:06]} 61.
Kh3 {[%clk 0:00:05.5]} 61... Rb8 {[%clk 0:00:05.3]} 62. Bf5 {[%clk 0:00:05.4]}
62... Qc4 {[%clk 0:00:03]} 63. Bd3 {[%clk 0:00:05.4]} 63... Rb3 {[%clk
0:00:02.4]} 64. Qf8# {[%clk 0:00:04.9]} 1-0

[Event "*** Titled Tuesday Blitz"]
[Site "Chess.com"]
[Date "2020.11.03"]
[Round "3"]
[White "Fortitudine"]
[Black "ailime26"]
[Result "0-1"]
[WhiteElo "2275"]
[BlackElo "1902"]
[TimeControl "180+1"]
[EndTime "10:32:11 PST"]
[Termination "ailime26 won on time"]

1. c4 {[%clk 0:03:00.9]} 1... c6 {[%clk 0:02:50.4]} 2. Nf3 {[%clk 0:02:57.5]}
2... d5 {[%clk 0:02:50]} 3. g3 {[%clk 0:02:55.1]} 3... Nf6 {[%clk 0:02:38.2]} 4.
Bg2 {[%clk 0:02:54]} 4... e6 {[%clk 0:02:37]} 5. O-O {[%clk 0:02:53.4]} 5... Be7
{[%clk 0:02:32.9]} 6. b3 {[%clk 0:02:53.3]} 6... O-O {[%clk 0:02:30.1]} 7. Bb2
{[%clk 0:02:53.1]} 7... Nbd7 {[%clk 0:02:30.2]} 8. d4 {[%clk 0:02:52.7]} 8... c5
{[%clk 0:02:30.3]} 9. cxd5 {[%clk 0:02:49.7]} 9... Nxd5 {[%clk 0:02:27.7]} 10.
e4 {[%clk 0:02:49.8]} 10... N5f6 {[%clk 0:02:25.9]} 11. e5 {[%clk 0:02:45.6]}
11... Nd5 {[%clk 0:02:23.6]} 12. Nc3 {[%clk 0:02:12.3]} 12... Nxc3 {[%clk
0:02:21.1]} 13. Bxc3 {[%clk 0:02:13.2]} 13... cxd4 {[%clk 0:02:21.5]} 14. Qxd4
{[%clk 0:02:09.2]} 14... b6 {[%clk 0:02:19]} 15. Rfd1 {[%clk 0:02:01.1]} 15...
Qc7 {[%clk 0:02:18.9]} 16. Rac1 {[%clk 0:01:57.8]} 16... Bc5 {[%clk 0:02:16.6]}
17. Qd3 {[%clk 0:01:49.8]} 17... g6 {[%clk 0:02:05.4]} 18. b4 {[%clk 0:01:35.7]}
18... Be7 {[%clk 0:02:04.1]} 19. Bd2 {[%clk 0:01:24.4]} 19... Qb8 {[%clk
0:02:02]} 20. Bh6 {[%clk 0:01:11.3]} 20... Rd8 {[%clk 0:01:56.5]} 21. Bg5 {[%clk
0:01:02.3]} 21... Bxg5 {[%clk 0:01:50.8]} 22. Nxg5 {[%clk 0:01:03.2]} 22... Bb7
{[%clk 0:01:49.1]} 23. Bxb7 {[%clk 0:00:53.8]} 23... Qxb7 {[%clk 0:01:50]} 24.
Qe3 {[%clk 0:00:29.9]} 24... a5 {[%clk 0:01:26.4]} 25. Ne4 {[%clk 0:00:24.3]}
25... Nxe5 {[%clk 0:01:20.1]} 26. Nf6+ {[%clk 0:00:23.8]} 26... Kg7 {[%clk
0:01:15.1]} 27. Qxe5 {[%clk 0:00:24]} 27... Rxd1+ {[%clk 0:01:05.3]} 28. Rxd1
{[%clk 0:00:24.9]} 28... Qf3 {[%clk 0:01:04.2]} 29. Ng4+ {[%clk 0:00:12.5]}
29... Kf8 {[%clk 0:01:00.3]} 30. Qh8+ {[%clk 0:00:08.5]} 30... Ke7 {[%clk
0:00:59.9]} 31. Qd4 {[%clk 0:00:06.3]} 31... axb4 {[%clk 0:00:52.2]} 32. Qd6+
{[%clk 0:00:05.3]} 32... Ke8 {[%clk 0:00:51.5]} 33. Ne5 {[%clk 0:00:05.1]} 33...
Qb7 {[%clk 0:00:48.6]} 34. Qxb4 {[%clk 0:00:04.2]} 34... Qe7 {[%clk 0:00:46]}
35. Qxe7+ {[%clk 0:00:02.9]} 35... Kxe7 {[%clk 0:00:46.4]} 36. Rd2 {[%clk
0:00:03.7]} 36... Kf6 {[%clk 0:00:44.5]} 37. Nd7+ {[%clk 0:00:03.8]} 37... Kg7
{[%clk 0:00:41]} 38. Nxb6 {[%clk 0:00:04.7]} 38... Ra6 {[%clk 0:00:39.9]} 39.
Nc4 {[%clk 0:00:05.2]} 39... Ra4 {[%clk 0:00:39.8]} 40. Ne3 {[%clk 0:00:05.5]}
40... Ra3 {[%clk 0:00:37.7]} 41. h4 {[%clk 0:00:05.8]} 41... h5 {[%clk
0:00:37.3]} 42. Kg2 {[%clk 0:00:06.2]} 42... Ra4 {[%clk 0:00:37.1]} 43. Nd1
{[%clk 0:00:05.2]} 43... Ra3 {[%clk 0:00:36.8]} 44. Ne3 {[%clk 0:00:05.4]} 44...
Ra4 {[%clk 0:00:37]} 45. Rc2 {[%clk 0:00:05.7]} 45... Kf6 {[%clk 0:00:36.8]} 46.
Nc4 {[%clk 0:00:05.7]} 46... Kg7 {[%clk 0:00:36.1]} 47. Nd6 {[%clk 0:00:05.6]}
47... Kf6 {[%clk 0:00:35.9]} 48. Nb5 {[%clk 0:00:05.7]} 48... Kg7 {[%clk
0:00:35.7]} 49. Nc3 {[%clk 0:00:06.1]} 49... Ra3 {[%clk 0:00:35.7]} 50. Ne2
{[%clk 0:00:05.5]} 50... Kf6 {[%clk 0:00:35.6]} 51. Nf4 {[%clk 0:00:04]} 51...
Kg7 {[%clk 0:00:35.7]} 52. f3 {[%clk 0:00:04.1]} 52... Kf6 {[%clk 0:00:35.6]}
53. Ne2 {[%clk 0:00:04.6]} 53... Kg7 {[%clk 0:00:35.8]} 54. Nc1 {[%clk
0:00:04.8]} 54... Ra4 {[%clk 0:00:32.5]} 55. Rb2 {[%clk 0:00:04.9]} 55... Rc4
{[%clk 0:00:31.1]} 56. Ne2 {[%clk 0:00:05.1]} 56... Ra4 {[%clk 0:00:31.3]} 57.
Nc3 {[%clk 0:00:04.9]} 57... Ra3 {[%clk 0:00:30.4]} 58. Nb5 {[%clk 0:00:05.4]}
58... Ra5 {[%clk 0:00:29.8]} 59. a3 {[%clk 0:00:05.5]} 59... Kf6 {[%clk
0:00:28.5]} 60. Rb3 {[%clk 0:00:05.8]} 60... Ra4 {[%clk 0:00:27.8]} 61. Kf2
{[%clk 0:00:05.8]} 61... Ra5 {[%clk 0:00:27.8]} 62. Nd4 {[%clk 0:00:04.8]} 62...
Ra4 {[%clk 0:00:24.9]} 63. Nc2 {[%clk 0:00:04.8]} 63... Rc4 {[%clk 0:00:23.4]}
64. Nb4 {[%clk 0:00:04.7]} 64... Rc1 {[%clk 0:00:19.9]} 0-1